[Event "Karnataka State Open-ch 2018"]
[Site "Bengaluru"]
[Date "2018.04.16"]
[Round "5"]
[White "Dilip Kumar Pedda"]
[Black "Balkishan, A."]
[Result "0-1"]
[ECO "E16"]
[WhiteElo "1653"]
[BlackElo "2026"]
[Annotator "NA"]
[PlyCount "110"]
[EventDate "2018.??.??"]
[EventType "swiss"]
[EventCountry "IND"]
[SourceTitle "playchess.com"]
[Source "ChessBase"]
[SourceQuality "1"]
[TimeControl "5400+30"]

{[%evp 38,93,0,0,0,-8,0,-23,5,2,2,0,21,0,0,0,10,0,10,0,0,0,0,0,0,0,0,-25,0,0,0,0,0,0,0,0,0,0,0,0,0,0,0,0,0,0,0,-137,-157,-409,-470,32767,-544,-638,-780,-1041,-1082,-956]} 1. d4 {[%emt 0:10:24]} Nf6 {[%emt 0:00:39]} 2. c4 {[%emt 0:00:20]} e6 {[%emt 0:00:06]} 3. Nf3 {[%emt 0:00:05]} Bb4+ {[%emt 0:00:09]} 4. Bd2 {[%emt 0:01:17]} Qe7 {[%emt 0:00:02]} 5. a3 {[%emt 0:00:31]} Bxd2+ {[%emt 0:00:06]} 6. Qxd2 {[%emt 0:00:11]} d6 {[%emt 0:00:41]} 7. Nc3 {[%emt 0:00:26]} O-O {[%emt 0:00:13]} 8. e4 {[%emt 0:00:24]} e5 {[%emt 0:00:11]} 9. d5 {[%emt 0:01:41] E11: Bogo-Indian} a5 {[%emt 0:00:34]} (9... Bg4 10. Be2 c6 11. O-O Bxf3 12. Bxf3 cxd5 13. cxd5 Nbd7 14. b4 Rfc8 15. Rfc1 Rc7 16. Nb5 Rxc1+ 17. Rxc1 {½-½ (28) Alarcia Astiz,C (2331)-Rubio Mejia,L (2443) Madrid 2017}) 10. Bd3 {[%emt 0:01:34]} Na6 {[%emt 0:01:53]} 11. h3 {[%emt 0:00:57]} Nh5 {[%emt 0:00:47]} 12. g4 {[%emt 0:03:10]} Nf4 {[%emt 0:01:45]} 13. Ne2 {[%emt 0:01:57]} Nc5 {[%emt 0:07:33]} 14. Bc2 {[%emt 0:01:43]} Re8 $146 {[%emt 0:03:31]} ({Predecessor:} 14... Nxe2 15. Qxe2 Bd7 16. Nd2 Rab8 {0-1 (49) Ramya,K (2175)-Khutsidze,S (2011) Batumi 2006}) 15. Nxf4 {[%emt 0:07:23]} exf4 {[%emt 0:02:50]} 16. Qxf4 {[%emt 0:00:27]} Qxe4+ {[%emt 0:06:31]} 17. Qxe4 {[%emt 0:01:10]} Nxe4 {[%emt 0:00:04]} 18. O-O {[%emt 0:00:42]} Bd7 {[%emt 0:02:47]} 19. Rae1 {[%emt 0:03:01]} Nc5 {[%emt 0:02:13]} 20. Nd4 {[%emt 0:02:57]} a4 {[%emt 0:02:03]} 21. f3 {[%emt 0:01:19]} g6 {[%emt 0:00:45]} 22. Kf2 {[%emt 0:02:27]} c6 {[%emt 0:05:35]} 23. Rxe8+ {[%emt 0:03:55]} Rxe8 {[%emt 0:00:02]} 24. Re1 {[%emt 0:01:05]} Rc8 {[%emt 0:00:49]} 25. Ne2 {[%emt 0:01:29]} cxd5 {[%emt 0:09:46]} 26. cxd5 {[%emt 0:00:38]} Kf8 {[%emt 0:01:21]} 27. Nc3 {[%emt 0:01:04]} b5 {[%emt 0:01:12]} 28. Ke2 {[%emt 0:10:12]} f5 {[%emt 0:01:37]} 29. gxf5 {[%emt 0:05:32]} gxf5 {[%emt 0:00:34]} 30. Rg1 {[%emt 0:01:13]} Kf7 {[%emt 0:00:11]} 31. Rg5 {[%emt 0:02:21]} Rb8 {[%emt 0:02:55]} 32. Rh5 {[%emt 0:03:02]} ({Don't play} 32. Bxf5 Kf6 $17) 32... Kg6 {[%emt 0:03:08]} 33. Rh4 {[%emt 0:00:14]} h6 {[%emt 0:00:31]} 34. Rb4 {[%emt 0:02:06]} Kg5 {[%emt 0:00:17]} 35. h4+ {[%emt 0:01:38]} Kf6 {[%emt 0:00:03]} 36. Ke3 {[%emt 0:02:12]} Na6 {[%emt 0:01:24]} 37. Rd4 {[%emt 0:00:41]} Re8+ {[%emt 0:00:44]} 38. Kf4 {[%emt 0:01:55]} Re1 {[%emt 0:03:04]} 39. Rd1 {[%emt 0:01:56]} Re8 {[%emt 0:01:44]} 40. Rd4 {[%emt 0:00:30]} Rg8 {[%emt 0:00:19]} 41. Bd3 {[%emt 0:00:58]} Nc7 {[%emt 0:00:09]} 42. Rb4 {[%emt 0:01:39] [#]} (42. Be2 $11) 42... Rg2 $1 {[%emt 0:00:30]} 43. Bxb5 $2 {[%emt 0:01:59]} (43. h5 $17) 43... Bxb5 {[%emt 0:00:30]} 44. Rxb5 {[%emt 0:02:04]} (44. Ke3 $142) 44... Nxb5 {[%emt 0:00:03]} 45. Nxb5 {[%emt 0:00:23]} Rxb2 {[%emt 0:01:21]} 46. Nxd6 {[%emt 0:00:31]} Rb3 {[%emt 0:00:10]} 47. Nxf5 $19 {[%emt 0:01:58]} Rxa3 {[%emt 0:00:07]} 48. Nd4 {[%emt 0:01:37]} Rc3 {[%emt 0:00:44]} 49. d6 {[%emt 0:02:15]} a3 {[%emt 0:00:09]} 50. Ke4 {[%emt 0:03:12]} Rc4 {[%emt 0:00:18]} 51. Kd5 {[%emt 0:01:06]} Rxd4+ {[%emt 0:00:04]} 52. Kxd4 {[%emt 0:00:03]} a2 {[%emt 0:00:07]} 53. Kc5 {[%emt 0:00:17]} a1=Q {[%emt 0:00:04]} 54. Kc6 {[%emt 0:00:14]} Ke6 {[%emt 0:00:03]} 55. Kc7 {[%emt 0:00:24]} Qc3+ {[%emt 0:00:05]} 0-1

[Event "Karnataka State Open-ch 2018"]
[Site "Bengaluru"]
[Date "2018.04.16"]
[Round "5"]
[White "Chirag Mudraje"]
[Black "Likhit, Chilukuri"]
[Result "0-1"]
[ECO "D15"]
[WhiteElo "1641"]
[BlackElo "1988"]
[Annotator "NA RC"]
[PlyCount "64"]
[EventDate "2018.??.??"]
[EventType "swiss"]
[EventCountry "IND"]
[SourceTitle "playchess.com"]
[Source "ChessBase"]
[SourceQuality "1"]
[TimeControl "5400+30"]

{[%evp 33,64,-71,-74,-115,-109,-123,-104,-106,-94,-202,-135,-156,-156,-199,0,-450,-451,-795,-825,-771,-925,-826,-956,-975,-938,-1142,-1127,-1188,-1124,-1957,-2997,-2222,-4755]} 1. d4 {[%emt 0:00:00]} d5 {[%emt 0:00:04]} 2. c4 {[%emt 0:00:00]} c6 {[%emt 0:00:04]} 3. Nc3 {[%emt 0:00:00]} Nf6 {[%emt 0:00:06]} 4. Nf3 {[%emt 0:00:01]} dxc4 {[%emt 0:00:06]} 5. e3 {[%emt 0:01:47]} b5 {[%emt 0:00:06]} 6. a4 {[%emt 0:02:56]} b4 {[%emt 0:00:38]} 7. Nb1 {[%emt 0:05:16]} e6 {[%emt 0:01:12]} 8. Bxc4 {[%emt 0:02:15]} Be7 {[%emt 0:01:56]} 9. O-O {[%emt 0:01:06] D15: Slav Defence: 4 Nc3 a6 and gambit lines after 4 Nc3 dxc4} O-O {[%emt 0:00:06]} (9... Ba6 10. Nbd2 Bxc4 11. Nxc4 O-O 12. Qe2 Qd5 13. b3 Nbd7 14. Bb2 c5 15. Rfd1 Qb7 16. Nfe5 Rac8 {1-0 (35) Beliavsky,A (2657)-Banusz,T (2517) Szentgotthard 2010}) 10. Nbd2 {[%emt 0:01:04]} c5 {[%emt 0:00:06]} 11. Nb3 {[%emt 0:16:06]} Nbd7 {[%emt 0:03:15]} 12. Qe2 {[%emt 0:02:43]} Bb7 {[%emt 0:06:03]} 13. Rd1 {[%emt 0:01:07]} a5 $146 {[%emt 0:08:41]} ({Find the theoretical novelty and annotate with similar games:} 13... Qc7 14. dxc5 Nxc5 15. Nfd4 Rac8 16. Bd2 Nce4 {1-0 (51) Del Rio de Angelis,S (2512)-Martin Duque,J (2382) Madrid 2015}) 14. dxc5 {[%emt 0:05:44]} Qc7 {[%emt 0:00:15]} 15. c6 {[%emt 0:03:01]} Qxc6 {[%emt 0:00:37]} 16. Nbd4 {[%emt 0:00:48]} Qb6 {[%emt 0:00:10]} 17. e4 {[%emt 0:05:41]} (17. b3 $11 {remains equal.}) 17... Bxe4 {[%emt 0:08:14]} 18. Be3 {[%emt 0:01:31]} Bc5 {[%emt 0:07:29]} 19. Bb5 {[%emt 0:03:26]} Bd5 {[%emt 0:06:32]} 20. Rac1 {[%emt 0:03:25]} Rfc8 {[%emt 0:00:56]} 21. g4 {[%emt 0:04:33]} (21. h3 $17) 21... Bxf3 {[%emt 0:01:01]} 22. Qxf3 {[%emt 0:02:26]} Ne5 $1 {[%emt 0:00:09]} 23. Qg2 {[%emt 0:01:55]} Nexg4 $2 {[%emt 0:04:14]} (23... Nfxg4 $19 24. Nf5 exf5 25. Bxc5 Qh6) 24. Rxc5 $2 {[%emt 0:15:04]} (24. Nf5 $1 $11 {and White has nothing to worry.} exf5 25. Bxc5) 24... Qxc5 {[%emt 0:00:06]} 25. Nxe6 {[%emt 0:00:32]} (25. Rc1 $142 Qe5 26. Re1) 25... Qc2 {[%emt 0:03:38]} 26. Rc1 {[%emt 0:01:23]} Qxb2 {[%emt 0:00:28]} 27. Rxc8+ {[%emt 0:05:38]} Rxc8 {[%emt 0:00:07]} 28. Qb7 {[%emt 0:04:02]} Qc3 {[%emt 0:02:33]} 29. Bd4 {[%emt 0:07:17]} Qc1+ {[%emt 0:00:27]} 30. Kg2 {[%emt 0:00:58]} fxe6 {[%emt 0:00:10]} 31. Bd7 {[%emt 0:00:14]} Nxd7 {[%emt 0:00:24]} 32. Qxd7 $19 {[%emt 0:00:19]} Qc6+ {[%emt 0:00:04]} 0-1

[Event "Karnataka State Open-ch 2018"]
[Site "Bengaluru"]
[Date "2018.04.16"]
[Round "5"]
[White "Nitish Bhat"]
[Black "Kishan, Gangolli"]
[Result "1/2-1/2"]
[ECO "E16"]
[WhiteElo "1637"]
[BlackElo "1974"]
[Annotator "NA"]
[PlyCount "57"]
[EventDate "2018.??.??"]
[EventType "swiss"]
[EventCountry "IND"]
[SourceTitle "playchess.com"]
[Source "ChessBase"]
[SourceQuality "1"]
[TimeControl "5400+30"]

1. d4 Nf6 2. c4 e6 3. Nf3 Bb4+ 4. Bd2 Qe7 5. Nc3 b6 6. e3 Bb7 7. Bd3 O-O 8. O-O d6 9. a3 Bxc3 10. Bxc3 Nbd7 11. Bc2 Ne4 12. Bxe4 $11 Bxe4 13. Nd2 Bb7 14. e4 e5 15. d5 f5 16. exf5 Rxf5 17. Ne4 Qh4 18. f3 Rh5 19. h3 Rf5 20. Be1 Qe7 21. Qc2 Qf7 22. Bd2 Qg6 23. Rf2 Raf8 24. Kh2 Nc5 25. Ng3 R5f6 26. Qxg6 Rxg6 27. Be3 Nb3 28. Rd1 a5 29. Ne4 1/2-1/2

[Event "Karnataka State Open-ch 2018"]
[Site "Bengaluru"]
[Date "2018.04.16"]
[Round "5"]
[White "Pavan C"]
[Black "Santoshkashyap, Hg"]
[Result "0-1"]
[ECO "D05"]
[WhiteElo "1622"]
[BlackElo "1929"]
[Annotator "NA"]
[PlyCount "122"]
[EventDate "2018.??.??"]
[EventType "swiss"]
[EventCountry "IND"]
[SourceTitle "playchess.com"]
[Source "ChessBase"]
[SourceQuality "1"]
[TimeControl "5400+30"]

{[%evp 26,104,-47,-63,-43,-93,-114,-126,-99,32767,32767,-124,32767,-222,32767,-331,-375,-375,-400,32767,-52,32767,32767,32767,32767,32767,32767,-52,32767,-159,32767,32767,32767,32767,32767,32767,-117,-125,-134,-171,-162,-166,-206,-153,-192,-239,-256,32767,32767,32767,32767,32767,-336,-258,-264,-320,-376,-389,-343,-356,-394,-338,-616,-525,-452,-375,-241,-279,-240,-456,-208,-347,-596,-683,-631,-482,0,32767,32767,-12840,-12842]} 1. d4 {[%emt 0:00:00]} Nf6 {[%emt 0:00:17]} 2. e3 {[%emt 0:00:00]} d5 {[%emt 0:00:14]} 3. Bd3 {[%emt 0:00:00]} c5 {[%emt 0:01:28]} 4. b3 {[%emt 0:04:34] D00: 1 d4 d5: Unusual lines} Nc6 {[%emt 0:00:53]} 5. Bb2 {[%emt 0:01:11]} cxd4 {[%emt 0:03:14]} 6. exd4 {[%emt 0:01:33]} Bg4 {[%emt 0:00:14]} 7. Be2 $146 {[%emt 0:02:13]} ({Predecessor:} 7. Nf3 e6 8. O-O Bd6 9. Nbd2 O-O 10. c4 e5 11. dxe5 Bxe5 12. Bxe5 Nxe5 13. Be2 Bxf3 14. Nxf3 Nxf3+ 15. Bxf3 dxc4 16. bxc4 Qc7 17. Qb3 {½-½ (30) Vovinkina,N (2437)-Atnilov,B (2119) Haifa 2008}) 7... Bxe2 {[%emt 0:06:11]} 8. Nxe2 {[%emt 0:01:36]} e6 {[%emt 0:00:06]} 9. Nd2 {[%emt 0:02:54]} Bd6 {[%emt 0:00:39]} 10. a3 {[%emt 0:08:13]} Qc7 {[%emt 0:08:39]} 11. h3 {[%emt 0:01:29]} O-O {[%emt 0:06:06]} 12. O-O {[%emt 0:00:15]} b5 {[%emt 0:03:26]} 13. c4 {[%emt 0:09:09]} bxc4 {[%emt 0:05:24]} 14. bxc4 {[%emt 0:00:13]} Rab8 {[%emt 0:00:10]} 15. Qc2 {[%emt 0:02:40]} dxc4 {[%emt 0:04:34]} 16. Bc3 {[%emt 0:06:04]} Ne7 {[%emt 0:04:07]} 17. Qa4 {[%emt 0:00:45]} Rfc8 {[%emt 0:02:17]} 18. Rfc1 {[%emt 0:02:41]} Qc6 {[%emt 0:02:09]} 19. Qc2 (19. Qxc6 $17 {only move.} Rxc6 20. Bb4) 19... Ned5 {[%emt 0:00:24]} 20. g4 {[%emt 0:04:15]} (20. Bb4 {was called for.}) 20... h6 {[%emt 0:04:37]} 21. Ba5 {[%emt 0:06:39]} Bf4 {[%emt 0:04:14]} 22. Qxc4 {[%emt 0:04:44]} Qb5 $2 {[%emt 0:00:06]} (22... Qxc4 $19 23. Nxc4 Bxc1 24. Rxc1 Rc6) 23. Qxb5 Rxc1+ {[%emt 0:00:06]} 24. Rxc1 {[%emt 0:05:22]} Rxb5 {[%emt 0:00:04]} 25. Rc8+ {[%emt 0:00:30]} Kh7 {[%emt 0:04:34]} 26. Nc4 $1 {[%emt 0:04:09]} Ne4 {[%emt 0:00:41]} 27. Kg2 {[%emt 0:02:35]} ({White should play} 27. Bb4 $15) 27... Nd6 {[%emt 0:00:06]} 28. Nxd6 {[%emt 0:05:08]} Bxd6 {[%emt 0:01:16]} 29. Be1 Bxa3 30. Nc3 {[%emt 0:03:05]} Nxc3 {[%emt 0:01:10]} 31. Bxc3 {[%emt 0:00:07] [#]} a5 $1 {[%emt 0:00:18]} 32. Kf3 {[%emt 0:01:31]} Bb4 {[%emt 0:06:12]} 33. Ke4 {[%emt 0:01:47]} Bxc3 {[%emt 0:00:15]} 34. Rxc3 {[%emt 0:00:10] [#]} a4 $1 {[%emt 0:12:24]} 35. Rc5 {[%emt 0:15:59]} (35. Ra3 $142) 35... Rxc5 {[%emt 0:17:53]} 36. dxc5 {[%emt 0:00:10]} a3 {[%emt 0:00:03]} 37. c6 {[%emt 0:00:21]} a2 {[%emt 0:00:05]} 38. c7 {[%emt 0:00:03]} a1=Q {[%emt 0:00:14]} 39. c8=Q {[%emt 0:00:06]} Qh1+ {[%emt 0:00:04]} 40. Kf4 {[%emt 0:01:33]} Qxh3 {[%emt 0:00:14]} 41. Qc2+ {[%emt 0:01:23]} g6 {[%emt 0:01:29]} 42. f3 {[%emt 0:00:19]} Qh4 {[%emt 0:01:07]} 43. Ke3 {[%emt 0:00:36]} Qe1+ {[%emt 0:00:17]} 44. Kd3 {[%emt 0:00:38]} Qe5 {[%emt 0:00:33]} 45. Qa4 {[%emt 0:00:38]} g5 {[%emt 0:01:02]} (45... h5 $142 46. gxh5 gxh5) 46. Qe8 {[%emt 0:01:32]} Kg7 {[%emt 0:00:11]} 47. Qa4 {[%emt 0:00:40] [#]} (47. Qc8 {was necessary.}) 47... Qf4 {[%emt 0:01:28]} (47... h5 $142 $1 48. gxh5 Kh6) 48. Qa1+ {[%emt 0:01:36]} e5 {[%emt 0:00:04]} 49. Ke2 {[%emt 0:00:22] [#]} Qd4 {[%emt 0:07:57]} (49... h5 $142 $1 50. gxh5 g4 51. fxg4 Qxg4+ 52. Ke3 Qxh5) 50. Qa8 {[%emt 0:00:10]} Qf4 $2 {[%emt 0:01:30]} (50... Qc4+ $19 51. Ke3 {[#]} h5 $1 {[%mdl 512]} 52. gxh5 g4 53. h6+ Kh7 54. fxg4 Qd4+ 55. Ke2 Qxg4+ 56. Ke1 Qb4+ 57. Ke2 Kxh6 58. Qh8+ Kg6 59. Qg8+ Kf6 60. Qd8+ Kf5 61. Qd7+ Kf6 62. Qd8+ Kf5 63. Qd7+ Kg6) 51. Qd5 {[%emt 0:01:20] [#]} e4 $1 {[%emt 0:01:11]} 52. Qd4+ {[%emt 0:02:25]} Kh7 $19 {[%emt 0:00:09]} 53. fxe4 {[%emt 0:00:53]} Qxg4+ {[%emt 0:00:06]} 54. Kf2 {[%emt 0:00:35]} Qf4+ {[%emt 0:00:39]} 55. Kg2 {[%emt 0:00:43]} g4 {[%emt 0:00:08]} 56. Qd3 {[%emt 0:00:17]} Qf3+ {[%emt 0:00:20]} 57. Qxf3 {[%emt 0:00:04]} gxf3+ {[%emt 0:00:05]} 58. Kxf3 {[%emt 0:00:06]} Kg6 {[%emt 0:00:08]} 59. Kg4 {[%emt 0:00:09]} Kf6 {[%emt 0:00:11]} 60. Kh5 {[%emt 0:00:13]} Ke5 {[%emt 0:00:04]} 61. Kxh6 {[%emt 0:00:04]} Kxe4 0-1

[Event "Karnataka State Open-ch 2018"]
[Site "Bengaluru"]
[Date "2018.04.17"]
[Round "7"]
[White "Hegde, Ravi Gopal"]
[Black "Karthik, H S"]
[Result "1/2-1/2"]
[ECO "B22"]
[WhiteElo "2139"]
[BlackElo "1897"]
[Annotator "NA"]
[PlyCount "96"]
[EventDate "2018.??.??"]
[EventType "swiss"]
[EventCountry "IND"]
[SourceTitle "playchess.com"]
[Source "ChessBase"]
[SourceQuality "1"]
[TimeControl "5400+30"]

{[%evp 32,91,8,0,0,0,0,0,0,0,-3,-18,-5,0,-7,0,0,0,0,0,0,0,0,0,0,0,-2,0,0,0,1,0,0,0,0,10,0,0,0,0,0,0,0,0,0,0,0,0,0,0,0,0,14,0,0,0,32767,32767,32767,32767,0,0]} 1. e4 {[%emt 0:00:00]} c5 {[%emt 0:00:07]} 2. c3 {[%emt 0:00:00]} d5 {[%emt 0:00:12]} 3. exd5 {[%emt 0:00:00]} Qxd5 {[%emt 0:00:14]} 4. d4 {[%emt 0:00:00]} Nf6 {[%emt 0:00:37]} 5. Nf3 {[%emt 0:00:07]} Bg4 {[%emt 0:00:26]} 6. Be2 {[%emt 0:00:10]} e6 {[%emt 0:00:30]} 7. h3 {[%emt 0:00:24]} Bh5 {[%emt 0:00:14]} 8. O-O {[%emt 0:00:12]} Nc6 {[%emt 0:01:01]} 9. Be3 {[%emt 0:00:11]} cxd4 {[%emt 0:00:12]} 10. cxd4 {[%emt 0:00:08]} Be7 {[%emt 0:00:55]} 11. Nc3 {[%emt 0:00:10]} Qa5 {[%emt 0:00:31]} 12. Qb3 {[%emt 0:02:02] B22: Sicilian: 2 c3} Qb4 {[%emt 0:00:20]} 13. Qxb4 {[%emt 0:00:15]} (13. Rfd1 Rd8 14. g4 Bg6 15. Ne5 {½-½ (15) Potkin,V (2606)-Motylev,A (2705) Rijeka 2010}) 13... Nxb4 {[%emt 0:00:23]} 14. g4 {[%emt 0:03:12]} Bg6 {[%emt 0:00:14]} 15. Ne5 {[%emt 0:00:07]} O-O {[%emt 0:05:39]} 16. Bf3 $146 {[%emt 0:02:49]} ({Predecessor:} 16. h4 Nfd5 17. h5 Bc2 18. a3 Nxe3 19. fxe3 Nd5 20. Nxd5 exd5 21. Rac1 Rac8 {½-½ (89) Sedina,E (2337)-Nikolova,A (2268) Germany 2011}) 16... Nfd5 {[%emt 0:10:37]} 17. Nxd5 {[%emt 0:09:25]} Nxd5 {[%emt 0:00:17]} 18. Rfc1 {[%emt 0:01:22]} Rac8 {[%emt 0:03:04]} 19. Nxg6 {[%emt 0:06:07]} hxg6 {[%emt 0:01:11]} 20. Kg2 {[%emt 0:00:25]} g5 {[%emt 0:08:59]} 21. a3 {[%emt 0:01:36]} b6 {[%emt 0:01:42]} 22. Be4 {[%emt 0:02:46]} g6 {[%emt 0:02:16]} 23. Kf3 {[%emt 0:03:19]} Kg7 {[%emt 0:02:21]} 24. Rxc8 {[%emt 0:02:31]} Rxc8 {[%emt 0:00:57]} 25. Rc1 {[%emt 0:00:14]} Rxc1 {[%emt 0:00:47]} 26. Bxc1 {[%emt 0:00:02]} Kf6 {[%emt 0:04:12]} 27. Bd2 {[%emt 0:01:01]} Bd6 {[%emt 0:01:05]} 28. Bxd5 {[%emt 0:01:44]} exd5 {[%emt 0:00:42]} 29. a4 {[%emt 0:00:07]} Be7 {[%emt 0:02:04]} 30. b4 {[%emt 0:00:34]} Ke6 {[%emt 0:01:31]} 31. b5 {[%emt 0:00:12]} f5 {[%emt 0:04:37]} 32. Ke2 {[%emt 0:00:28]} f4 {[%emt 0:01:46]} 33. Kd3 {[%emt 0:00:59]} Bd8 {[%emt 0:03:44]} 34. Bc3 {[%emt 0:00:41]} Kd6 {[%emt 0:00:36]} 35. Bb4+ {[%emt 0:00:43]} Ke6 {[%emt 0:00:18]} 36. Bd2 {[%emt 0:07:45]} Bc7 {[%emt 0:01:04]} 37. Ke2 {[%emt 0:00:14]} Kf6 {[%emt 0:01:12]} 38. Bb4 {[%emt 0:01:36]} Ke6 {[%emt 0:00:36]} 39. Kf3 {[%emt 0:00:38]} Bd6 {[%emt 0:01:35]} 40. Bd2 {[%emt 0:07:58]} Bc7 {[%emt 0:00:55]} 41. Kg2 {[%emt 0:01:00]} Kf6 {[%emt 0:00:59]} 42. Be1 {[%emt 0:01:57]} Ke6 {[%emt 0:01:08]} 43. f3 {[%emt 0:00:39]} Bd8 {[%emt 0:00:45]} 44. Kf1 {[%emt 0:00:12]} Kd6 {[%emt 0:00:52]} 45. Ke2 {[%emt 0:00:23]} Ke6 {[%emt 0:00:45]} 46. Kd3 $11 {[%emt 0:00:10]} Kd6 {[%emt 0:00:37]} 47. Bb4+ {[%emt 0:00:27]} Ke6 {[%emt 0:00:34]} 48. Bf8 {[%emt 0:01:28]} Be7 1/2-1/2

[Event "Karnataka State Open-ch 2018"]
[Site "Bengaluru"]
[Date "2018.04.17"]
[Round "7"]
[White "Raducanu, Andrei-Augustin"]
[Black "Shashank Bhat G S"]
[Result "1-0"]
[ECO "B23"]
[WhiteElo "2063"]
[BlackElo "1698"]
[Annotator "NA RC"]
[PlyCount "61"]
[EventDate "2018.??.??"]
[EventType "swiss"]
[EventCountry "IND"]
[SourceTitle "playchess.com"]
[Source "ChessBase"]
[SourceQuality "1"]
[TimeControl "5400+30"]

{[%evp 26,59,32,54,69,63,72,66,69,55,31,27,122,143,128,155,112,137,149,158,149,32767,32767,271,247,269,268,250,293,231,272,32767,457,512,462,522]} 1. e4 {[%emt 0:00:00]} c5 {[%emt 0:00:16]} 2. Nc3 {[%emt 0:00:00]} Nc6 {[%emt 0:00:07]} 3. f4 {[%emt 0:00:01]} g6 {[%emt 0:00:36]} 4. Nf3 {[%emt 0:00:06]} Bg7 {[%emt 0:00:21]} 5. Bc4 {[%emt 0:00:09]} e6 {[%emt 0:00:32]} 6. O-O {[%emt 0:00:16]} Nge7 {[%emt 0:00:45]} 7. d3 {[%emt 0:01:28]} d6 {[%emt 0:00:18]} 8. Qe1 {[%emt 0:00:07]} Nd4 {[%emt 0:03:59]} 9. Nxd4 {[%emt 0:00:15]} cxd4 {[%emt 0:00:10]} 10. Ne2 {[%emt 0:00:14]} d5 {[%emt 0:06:08] B23: Closed Sicilian: Lines without g3} (10... O-O 11. Bb3 a5 12. a4 d5 13. e5 Nc6 14. Kh1 b6 15. Bd2 f6 16. exf6 Bxf6 17. Ng1 Ra7 18. Nf3 Raf7 19. Qe2 {½-½ (42) Benjamin,J (2565)-Sandipan,C (2546) Philadelphia 2006}) 11. Bb5+ {[%emt 0:13:21]} Bd7 {[%emt 0:00:08]} 12. Bxd7+ {[%emt 0:00:27]} Qxd7 {[%emt 0:00:06]} 13. e5 {[%emt 0:00:12]} Nc6 {[%emt 0:09:32]} 14. b4 {[%emt 0:02:51]} Bf8 $146 {[%emt 0:06:54]} ({Predecessor:} 14... b5 15. Bb2 a5 16. Nxd4 Bf8 17. Nxc6 Qxc6 18. c3 axb4 19. cxb4 {1-0 (65) Aldea,L (2240)-Barzanu,I (2115) Sovata 2001}) 15. a3 {[%emt 0:06:49]} ({Don't play} 15. b5 Nb4 $15) 15... b5 {[%emt 0:09:58]} 16. Bb2 {[%emt 0:19:16]} a5 {[%emt 0:01:43]} 17. Nxd4 {[%emt 0:03:31]} axb4 {[%emt 0:01:53]} 18. axb4 {[%emt 0:04:27]} Rc8 {[%emt 0:11:13]} (18... Rxa1 $14 19. Qxa1 Bxb4) 19. Nxc6 {[%emt 0:11:15]} ({Don't take} 19. Nxb5 $6 Nxb4 20. Nd6+ Bxd6 $14) 19... Qxc6 {[%emt 0:00:24]} 20. Bd4 {[%emt 0:00:56]} Be7 {[%emt 0:08:17]} 21. c3 {[%emt 0:02:01]} O-O {[%emt 0:00:27]} 22. Ra7 {[%emt 0:04:00]} Rc7 {[%emt 0:01:14]} 23. Qa1 {[%emt 0:00:55]} f6 {[%emt 0:04:19]} 24. Qa6 {[%emt 0:08:58]} Qxa6 {[%emt 0:04:29]} 25. Rxa6 {[%emt 0:00:06]} Kf7 {[%emt 0:00:08]} 26. Rfa1 {[%emt 0:04:17]} Rfc8 {[%emt 0:02:32]} 27. Ra7 {[%emt 0:01:18]} fxe5 {[%emt 0:01:33]} 28. Bxe5 {[%emt 0:01:41]} Rxc3 $18 {[%emt 0:01:37]} (28... Rxa7 29. Rxa7 Ke8) 29. Bxc3 {[%emt 0:00:10]} Rxc3 {[%emt 0:01:26]} 30. Rb7 {[%emt 0:00:10]} Kf6 {[%emt 0:00:30]} 31. Raa7 {[%emt 0:00:39]} 1-0

[Event "Karnataka State Open-ch 2018"]
[Site "Bengaluru"]
[Date "2018.04.17"]
[Round "7"]
[White "Balkishan, A."]
[Black "Sanjana Raghunath"]
[Result "1-0"]
[ECO "E11"]
[WhiteElo "2026"]
[BlackElo "1472"]
[Annotator "NA RC"]
[PlyCount "49"]
[EventDate "2018.??.??"]
[EventType "swiss"]
[EventCountry "IND"]
[SourceTitle "playchess.com"]
[Source "ChessBase"]
[SourceQuality "1"]
[TimeControl "5400+30"]

{[%evp 28,47,205,202,220,200,211,191,240,250,250,254,548,401,1083,1127,1363,1417,29996,29997,29997,29998]} 1. d4 {[%emt 0:00:00]} Nf6 {[%emt 0:00:18]} 2. Nf3 {[%emt 0:00:04]} e6 {[%emt 0:01:14]} 3. c4 {[%emt 0:00:19]} Bb4+ {[%emt 0:00:13]} 4. Nbd2 {[%emt 0:00:04]} Qe7 {[%emt 0:01:32]} 5. a3 {[%emt 0:00:16] E11: Bogo-Indian} (5. g3 O-O 6. Bg2 d6 7. O-O e5 8. e4 Bxd2 9. Qxd2 Bg4 10. Nh4 exd4 11. Qxd4 Nc6 12. Qc3 Qe5 13. Bd2 Nd4 14. Kh1 Nc6 {1-0 (40) Dubov,D (2666)-Demidov,M (2521) Sochi 2017}) 5... Bxd2+ {[%emt 0:00:33]} 6. Bxd2 {[%emt 0:00:03]} Nc6 {[%emt 0:00:54]} 7. Bg5 {[%emt 0:00:26]} d5 $146 {[%emt 0:02:52]} ({Find the theoretical novelty and annotate with similar games:} 7... h6 8. Bxf6 Qxf6 9. h3 d6 10. e4 O-O 11. Qd2 Re8 12. Rd1 e5 {½-½ (24) Mikhalevski,V-Sygulski,B (2355) Katowice 1990}) 8. e3 {[%emt 0:00:21]} h6 {[%emt 0:00:51]} 9. Bh4 {[%emt 0:00:02]} O-O {[%emt 0:00:31]} 10. Qc2 {[%emt 0:01:58]} Bd7 {[%emt 0:03:56]} 11. Ne5 {[%emt 0:00:42]} Rad8 {[%emt 0:04:11]} 12. Ng4 {[%emt 0:00:44]} h5 {[%emt 0:04:38]} 13. Nxf6+ {[%emt 0:00:42]} gxf6 {[%emt 0:00:18]} 14. Be2 {[%emt 0:02:06]} Kg7 {[%emt 0:01:13]} 15. O-O {[%emt 0:07:38]} dxc4 {[%emt 0:02:58]} 16. Qxc4 {[%emt 0:00:40]} ({But not} 16. Bxh5 $6 Rh8 $16) 16... Rh8 {[%emt 0:01:27]} 17. b4 {[%emt 0:00:59]} a6 {[%emt 0:00:40]} 18. e4 {[%emt 0:00:30]} e5 {[%emt 0:02:02] [#]} 19. f4 $1 {[%emt 0:02:30]} exf4 $2 {[%emt 0:14:03]} (19... exd4 {is tougher.} 20. e5 Rh6) 20. e5 {[%emt 0:02:11]} Qe6 {[%emt 0:02:41]} (20... Rh6 $142 21. Rxf4 Nxe5 22. dxe5 Qxe5) 21. Bxf6+ {[%emt 0:00:23]} Kh6 {[%emt 0:01:02]} 22. d5 {[%emt 0:00:15]} b5 {[%emt 0:01:47]} 23. Qxf4+ {[%emt 0:00:07]} Kh7 {[%emt 0:00:15]} 24. Qg5 {[%emt 0:00:19]} Rhg8 {[%emt 0:01:06]} 25. Qxh5# {[%emt 0:00:04]} 1-0